fUST/lending_fUST_20250627
["ID","MTS","AMOUNT","RATE_DAILY","PERIOD"]
[368089566,1751021450227,-230.07848,0.00020941,2]
[368089567,1751021450237,-713.95,0.00021095,2]
[368089568,1751021450246,-460.0,0.00021095,2]
[368089569,1751021450258,-526.66,0.00021095,2]
[368089570,1751021450267,-713.95,0.00021369,2]
[368089571,1751021450276,-460.0,0.00021369,2]
[368089572,1751021450285,-655.41802173,0.00021482,2]
[368089573,1751021450405,-332.15490001,0.00021369,2]
[368089574,1751021450418,-194.50509999,0.00021369,2]
[368089575,1751021450428,-508.45239842,0.00021482,2]
[368089576,1751021450438,-757.44250144,0.000215,2]
[368090227,1751021687974,4137.88,0.00024658,120]
[368090532,1751021907009,-5000.0,0.00018805,9]
[368090533,1751021907038,-378.68458933,0.00018995,2]
[368090534,1751021907074,-2046.02249892,0.00019,2]
[368090535,1751021907137,-4844.85320679,0.00019,2]
[368090536,1751021907207,-305.73261671,0.00019,2]
[368090537,1751021911377,5000.0,0.000191,2]
[368090538,1751021961879,-1125.0,0.0001914,2]
[368090539,1751021961904,-7196.60832227,0.00019141,2]
[368090540,1751021961924,-300.0,0.00019173,2]
[368090541,1751021961945,-1000.0,0.00019174,2]
[368090542,1751021961967,-346.39167773,0.00019174,2]
[368090543,1751021971400,5000.0,0.000191,2]
[368090544,1751021986923,5000.0,0.000191,2]
[368090545,1751022003922,4388.53476658,0.000191,2]
[368090546,1751022003946,611.46523342,0.000191,2]
[368090547,1751022019145,5000.0,0.000191,2]
[368090548,1751022034806,5000.0,0.000191,2]
[368090551,1751022054319,5000.0,0.000191,2]
[368090552,1751022070503,4388.53476658,0.000191,2]
[368090553,1751022070529,611.46523342,0.000191,2]
[368090554,1751022086353,5000.0,0.000191,2]
[368090555,1751022102290,5000.0,0.000191,2]
[368090556,1751022117503,5000.0,0.000191,2]
[368090557,1751022134944,4388.53476658,0.000191,2]
[368090558,1751022134966,611.46523342,0.000191,2]
[368090559,1751022150778,5000.0,0.000191,2]
[368090560,1751022166247,5000.0,0.000191,2]
[368090917,1751022181585,5000.0,0.000191,2]
[368091218,1751022198678,252.45639289,0.00018995,2]
[368091220,1751022198708,4136.07837369,0.000191,2]
[368091222,1751022198731,863.92162631,0.000191,2]
[368091435,1751022215226,5000.0,0.000191,2]
[368091436,1751022231132,4968.0,0.000191,2]
[368091512,1751022248897,5000.0,0.000191,2]
[368091513,1751022249288,4168.07837369,0.00018315,2]
[368091514,1751022249313,20000.0,0.00018315,2]
[368091515,1751022249338,731.92162631,0.00018315,2]
[368091516,1751022254557,160.852536,0.00013699,2]
[368091519,1751022264633,5000.0,0.000191,2]
[368091520,1751022280235,5000.0,0.000191,2]
[368091521,1751022288342,1000.0,0.00018965,2]
[368091522,1751022288603,1119.52395335,0.00018992,2]
[368091523,1751022295774,5000.0,0.000191,2]
[368091524,1751022312077,1987.70188434,0.000191,2]
[368091525,1751022312101,3012.29811566,0.000191,2]
[368091526,1751022328319,5000.0,0.000191,2]
[368091527,1751022343533,5000.0,0.000191,2]
[368091528,1751022344103,-300.0,0.00019177,2]
[368091529,1751022344123,-300.0,0.00019177,2]
[368091530,1751022344143,-300.0,0.00019177,2]
[368091531,1751022344163,-300.0,0.00019177,2]
[368091532,1751022344185,-725.71573423,0.00019177,2]
[368091533,1751022358891,5000.0,0.000191,2]
[368091534,1751022374710,1987.70188434,0.000191,2]
[368091535,1751022374736,3012.29811566,0.000191,2]
[368091536,1751022391833,5000.0,0.000191,2]
[368091537,1751022411331,5000.0,0.000191,2]
[368091538,1751022427909,5000.0,0.000191,2]
[368091539,1751022438116,-474.28426577,0.00019177,2]
[368091540,1751022438136,-1200.0,0.00019177,2]
[368091541,1751022438161,-300.0,0.00019177,2]
[368091542,1751022438186,-500.0,0.00019177,2]
[368091543,1751022438210,-177.26252989,0.00019177,2]
[368091544,1751022444455,1987.70188434,0.000191,2]
[368091545,1751022444478,2615.20472931,0.000191,2]
[368091546,1751022474929,269.0902228,0.000191,2]
[368091754,1751022502535,168.30426193,0.000189,2]
[368092209,1751022638664,-300.0,0.00019177,2]
[368092211,1751022638675,-203.0,0.00019177,2]
[368092213,1751022638689,-300.0,0.00019177,2]
[368092215,1751022638698,-390.06704394,0.00019177,2]
[368092217,1751022638708,-500.0,0.00019178,2]
[368092219,1751022638718,-420.73,0.00019178,2]
[368092221,1751022638727,-460.0,0.00019178,2]
[368092223,1751022638736,-321.33140476,0.00019178,2]
[368092225,1751022638746,-189.60997956,0.00019178,2]
[368092227,1751022638755,-419.58749599,0.00019178,2]
[368092229,1751022638765,-477.72,0.00019178,2]
[368092231,1751022638775,-460.0,0.00019178,2]
[368092233,1751022638783,-460.0,0.00019178,2]
[368092235,1751022638793,-570.52635945,0.00019178,2]
[368092237,1751022638803,-460.0,0.00019178,2]
[368092239,1751022638812,-471.66,0.00019178,2]
[368092241,1751022638821,-460.0,0.00019178,2]
[368092243,1751022638830,-460.0,0.00019178,2]
[368092245,1751022638839,-460.0,0.00019178,2]
[368092247,1751022638848,-460.0,0.00019178,2]
[368092249,1751022638858,-460.0,0.00019178,2]
[368092251,1751022638867,-503.49257348,0.00019178,2]
[368092253,1751022638877,-208.86347072,0.00019178,2]
[368092255,1751022638889,-251.13652928,0.00019178,2]
[368092257,1751022638898,-460.0,0.00019178,2]
[368092259,1751022638907,-460.0,0.00019178,2]
[368092261,1751022638916,-460.0,0.00019178,2]
[368092263,1751022638925,-460.0,0.00019178,2]
[368092265,1751022638935,-376.66706206,0.00019178,2]
[368092267,1751022638950,-415.28293794,0.00019178,2]
[368092269,1751022638959,-460.0,0.00019178,2]
[368092270,1751022638968,-460.0,0.00019178,2]
[368092272,1751022638977,-460.0,0.00019178,2]
[368092274,1751022638986,-460.0,0.00019178,2]
[368092276,1751022638995,-460.0,0.00019178,2]
[368092278,1751022639005,-460.0,0.00019178,2]
[368092281,1751022639014,-460.0,0.00019178,2]
[368092283,1751022639025,-460.0,0.00019178,2]
[368092285,1751022639034,-460.0,0.00019178,2]
[368092287,1751022639043,-460.0,0.00019178,2]
[368092289,1751022639053,-460.0,0.00019178,2]
[368092291,1751022639062,-460.0,0.00019178,2]
[368092293,1751022639071,-460.0,0.00019178,2]
[368092295,1751022639080,-528.92,0.00019178,2]
[368092297,1751022639089,-460.0,0.00019178,2]
[368092298,1751022639098,-713.1,0.00019178,2]
[368092300,1751022639108,-460.0,0.00019178,2]
[368092302,1751022639118,-460.0,0.00019178,2]
[368092305,1751022639128,-460.0,0.00019178,2]
[368092307,1751022639138,-460.0,0.00019178,2]
[368092309,1751022639148,-5760.83,0.00019178,2]
[368092311,1751022639158,-460.0,0.00019178,2]
[368092312,1751022639167,-460.0,0.00019178,2]
[368092313,1751022639177,-460.0,0.00019178,2]
[368092314,1751022639186,-460.0,0.00019178,2]
[368092315,1751022639196,-460.0,0.00019178,2]
[368092316,1751022639206,-460.0,0.00019178,2]
[368092317,1751022639215,-3724.58,0.00019178,2]
[368092318,1751022639224,-2481.82,0.00019178,2]
[368092319,1751022639234,-460.0,0.00019178,2]
[368092320,1751022639243,-460.0,0.00019178,2]
[368092321,1751022639253,-460.0,0.00019178,2]
[368092322,1751022639263,-460.0,0.00019178,2]
[368092323,1751022639272,-1680.38,0.00019178,2]
[368092324,1751022639282,-532.96,0.00019178,2]
[368092325,1751022639291,-2154.79,0.00019178,2]
[368092326,1751022639301,-1185.4,0.00019178,2]
[368092327,1751022639310,-460.0,0.00019178,2]
[368092328,1751022639319,-1237.52,0.00019178,2]
[368092329,1751022639328,-460.0,0.00019178,2]
[368092330,1751022639337,-594.38623226,0.00019178,2]
[368092331,1751022639347,-651.83,0.00019178,2]
[368092332,1751022639357,-460.0,0.00019178,2]
[368092333,1751022639366,-521.6,0.00019178,2]
[368092334,1751022639375,-1035.1,0.00019178,2]
[368092335,1751022639384,-460.0,0.00019178,2]
[368092336,1751022639393,-460.0,0.00019178,2]
[368092337,1751022639402,-460.0,0.00019178,2]
[368092338,1751022639411,-460.0,0.00019178,2]
[368092339,1751022639422,-460.0,0.00019178,2]
[368092340,1751022639431,-460.0,0.00019178,2]
[368092341,1751022639442,-460.0,0.00019178,2]
[368092342,1751022639452,-460.0,0.00019178,2]
[368092343,1751022639462,-786.33,0.00019178,2]
[368092344,1751022639471,-2300.32,0.00019178,2]
[368092345,1751022639480,-726.19,0.00019178,2]
[368092346,1751022639489,-580.0,0.00019178,2]
[368092347,1751022639498,-460.0,0.00019178,2]
[368092348,1751022639508,-609.19,0.00019178,2]
[368092349,1751022639519,-5506.58,0.00019178,2]
[368092350,1751022639530,-1858.38,0.00019178,2]
[368092351,1751022639540,-460.0,0.00019178,2]
[368092352,1751022639549,-460.0,0.00019178,2]
[368092353,1751022639558,-460.0,0.00019178,2]
[368092354,1751022639568,-460.0,0.00019178,2]
[368092355,1751022639577,-460.0,0.00019178,2]
[368092356,1751022639586,-333.81923705,0.00019178,2]
[368092357,1751022639599,-4272.26,0.00019178,2]
[368092358,1751022639609,-460.0,0.00019178,2]
[368092359,1751022639618,-460.0,0.00019178,2]
[368092360,1751022639628,-460.0,0.00019178,2]
[368092361,1751022639637,-460.0,0.00019178,2]
[368092362,1751022639647,-460.0,0.00019178,2]
[368092363,1751022639656,-978.95,0.00019178,2]
[368092364,1751022639667,-1506.98,0.00019178,2]
[368092365,1751022639677,-460.0,0.00019178,2]
[368092366,1751022639687,-460.0,0.00019178,2]
[368092367,1751022639696,-753.3,0.00019178,2]
[368092368,1751022639705,-3243.13,0.00019178,2]
[368092369,1751022639716,-616.05,0.00019178,2]
[368092370,1751022639725,-305.76,0.00019178,2]
[368092371,1751022639734,-561.44951705,0.00019178,2]
[368092372,1751022639744,-3045.23,0.00019178,2]
[368092373,1751022639754,-3763.12,0.00019178,2]
[368092374,1751022639763,-460.0,0.00019178,2]
[368092375,1751022639772,-466.25,0.00019178,2]
[368092376,1751022639782,-460.0,0.00019178,2]
[368092377,1751022639792,-691.92,0.00019178,2]
[368092378,1751022639801,-460.0,0.00019178,2]
[368092379,1751022639811,-460.0,0.00019178,2]
[368092380,1751022639820,-472.04,0.00019178,2]
[368092381,1751022639829,-460.0,0.00019178,2]
[368092382,1751022639839,-460.0,0.00019178,2]
[368092383,1751022639848,-580.0,0.00019178,2]
[368092384,1751022639859,-460.0,0.00019178,2]
[368092385,1751022639869,-460.0,0.00019178,2]
[368092386,1751022639878,-460.0,0.00019178,2]
[368092387,1751022639887,-460.0,0.00019178,2]
[368092388,1751022639896,-668.29,0.00019178,2]
[368092389,1751022639905,-460.0,0.00019178,2]
[368092390,1751022639914,-460.0,0.00019178,2]
[368092391,1751022639934,-651.62,0.00019178,2]
[368092392,1751022639945,-1474.65,0.00019178,2]
[368092393,1751022639954,-956.72,0.00019178,2]
[368092394,1751022639963,-460.0,0.00019178,2]
[368092395,1751022639973,-500.0,0.00019178,2]
[368092396,1751022639983,-50000.0,0.00019178,2]
[368092397,1751022639998,-381.622136,0.00019178,2]
[368092398,1751022640008,-500.0,0.00019451,2]
[368092399,1751022640018,-500.0,0.00019451,2]
[368092400,1751022640028,-500.0,0.00019451,2]
[368092401,1751022640038,-500.0,0.00019451,2]
[368092402,1751022640047,-500.0,0.00019451,2]
[368092403,1751022640057,-439.61337937,0.00019451,2]
[368092404,1751022640066,-500.0,0.00019451,2]
[368092405,1751022640076,-500.0,0.00019451,2]
[368092406,1751022640086,-500.0,0.00019451,2]
[368092407,1751022640096,-500.0,0.00019451,2]
[368092408,1751022640105,-500.0,0.00019451,2]
[368092409,1751022640115,-500.0,0.00019451,2]
[368092410,1751022640125,-500.0,0.00019451,2]
[368092411,1751022640318,-500.0,0.00019451,2]
[368092412,1751022640328,-500.0,0.00019451,2]
[368092413,1751022640338,-391.96449131,0.00019451,2]
[368092414,1751022640348,-500.0,0.00019451,2]
[368092415,1751022640358,-500.0,0.00019451,2]
[368092416,1751022640367,-500.0,0.00019451,2]
[368092417,1751022640376,-300.0,0.00019451,2]
[368092418,1751022640385,-500.0,0.00019451,2]
[368092419,1751022640395,-500.0,0.00019451,2]
[368092420,1751022640404,-500.0,0.00019451,2]
[368092421,1751022640414,-500.0,0.00019451,2]
[368092422,1751022640423,-311.26362579,0.00019451,2]
[368092423,1751022640433,-500.0,0.00019451,2]
[368092424,1751022640442,-500.0,0.00019451,2]
[368092425,1751022640452,-533.27121343,0.00019451,2]
[368092426,1751022640461,-500.0,0.00019451,2]
[368092427,1751022640471,-477.72,0.00019452,2]
[368092428,1751022640480,-460.0,0.00019452,2]
[368092429,1751022640490,-435.75951801,0.00019452,2]
[368092430,1751022640499,-460.0,0.00019452,2]
[368092431,1751022640510,-512.01165379,0.00019452,2]
[368092432,1751022640521,-460.0,0.00019452,2]
[368092433,1751022640531,-460.0,0.00019452,2]
[368092434,1751022640540,-460.0,0.00019452,2]
[368092435,1751022640551,-460.0,0.00019452,2]
[368092436,1751022640561,-460.0,0.00019452,2]
[368092437,1751022640570,-460.0,0.00019452,2]
[368092438,1751022640580,-791.95,0.00019452,2]
[368092439,1751022640591,-460.0,0.00019452,2]
[368092440,1751022640605,-460.0,0.00019452,2]
[368092441,1751022640615,-460.0,0.00019452,2]
[368092442,1751022640625,-460.0,0.00019452,2]
[368092443,1751022640636,-460.0,0.00019452,2]
[368092445,1751022640645,-460.0,0.00019452,2]
[368092447,1751022640654,-460.0,0.00019452,2]
[368092449,1751022640664,-460.0,0.00019452,2]
[368092451,1751022640674,-460.0,0.00019452,2]
[368092453,1751022640683,-528.92,0.00019452,2]
[368092454,1751022640693,-713.1,0.00019452,2]
[368092455,1751022640702,-460.0,0.00019452,2]
[368092456,1751022640711,-460.0,0.00019452,2]
[368092457,1751022640721,-157.66197217,0.00019452,2]
[368092458,1751022640730,-5760.83,0.00019452,2]
[368092459,1751022640739,-460.0,0.00019452,2]
[368092460,1751022640749,-460.0,0.00019452,2]
[368092461,1751022640758,-460.0,0.00019452,2]
[368092462,1751022640768,-460.0,0.00019452,2]
[368092463,1751022640777,-460.0,0.00019452,2]
[368092464,1751022640786,-460.0,0.00019452,2]
[368092465,1751022640797,-3724.58,0.00019452,2]
[368092466,1751022640807,-2481.82,0.00019452,2]
[368092467,1751022640818,-460.0,0.00019452,2]
[368092468,1751022640830,-460.0,0.00019452,2]
[368092469,1751022640840,-460.0,0.00019452,2]
[368092470,1751022640850,-460.0,0.00019452,2]
[368092472,1751022640859,-1680.38,0.00019452,2]
[368092473,1751022640869,-2154.79,0.00019452,2]
[368092474,1751022640879,-1185.4,0.00019452,2]
[368092475,1751022640889,-460.0,0.00019452,2]
[368092476,1751022640898,-1237.52,0.00019452,2]
[368092477,1751022640907,-460.0,0.00019452,2]
[368092478,1751022640917,-651.83,0.00019452,2]
[368092479,1751022640927,-460.0,0.00019452,2]
[368092480,1751022640936,-521.6,0.00019452,2]
[368092481,1751022640946,-1035.1,0.00019452,2]
[368092482,1751022640955,-460.0,0.00019452,2]
[368092483,1751022640964,-460.0,0.00019452,2]
[368092484,1751022640974,-303.66091457,0.00019452,2]
[368092485,1751022640983,-460.0,0.00019452,2]
[368092486,1751022640992,-460.0,0.00019452,2]
[368092487,1751022641001,-460.0,0.00019452,2]
[368092488,1751022641010,-460.0,0.00019452,2]
[368092489,1751022641020,-786.33,0.00019452,2]
[368092490,1751022641029,-2300.32,0.00019452,2]
[368092491,1751022641039,-726.19,0.00019452,2]
[368092492,1751022641048,-609.19,0.00019452,2]
[368092493,1751022641057,-5506.58,0.00019452,2]
[368092494,1751022641066,-1858.38,0.00019452,2]
[368092495,1751022641075,-460.0,0.00019452,2]
[368092496,1751022641085,-460.0,0.00019452,2]
[368092497,1751022641094,-460.0,0.00019452,2]
[368092498,1751022641104,-460.0,0.00019452,2]
[368092499,1751022641113,-4272.26,0.00019452,2]
[368092500,1751022641123,-460.0,0.00019452,2]
[368092501,1751022641132,-460.0,0.00019452,2]
[368092502,1751022641141,-460.0,0.00019452,2]
[368092503,1751022641151,-460.0,0.00019452,2]
[368092504,1751022641161,-1506.98,0.00019452,2]
[368092505,1751022641170,-978.95,0.00019452,2]
[368092506,1751022641180,-460.0,0.00019452,2]
[368092507,1751022641189,-460.0,0.00019452,2]
[368092508,1751022641199,-753.3,0.00019452,2]
[368092509,1751022641208,-3243.13,0.00019452,2]
[368092510,1751022641218,-616.05,0.00019452,2]
[368092511,1751022641227,-3045.23,0.00019452,2]
[368092512,1751022641237,-3763.12,0.00019452,2]
[368092513,1751022641247,-460.0,0.00019452,2]
[368092514,1751022641256,-466.25,0.00019452,2]
[368092515,1751022641266,-460.0,0.00019452,2]
[368092516,1751022641276,-691.92,0.00019452,2]
[368092517,1751022641285,-460.0,0.00019452,2]
[368092518,1751022641295,-472.04,0.00019452,2]
[368092519,1751022641304,-460.0,0.00019452,2]
[368092520,1751022641313,-460.0,0.00019452,2]
[368092521,1751022641323,-460.0,0.00019452,2]
[368092522,1751022641332,-460.0,0.00019452,2]
[368092523,1751022641342,-460.0,0.00019452,2]
[368092524,1751022641351,-460.0,0.00019452,2]
[368092525,1751022641361,-668.29,0.00019452,2]
[368092526,1751022641370,-460.0,0.00019452,2]
[368092527,1751022641380,-460.0,0.00019452,2]
[368092528,1751022641390,-651.62,0.00019452,2]
[368092529,1751022641399,-1474.65,0.00019452,2]
[368092530,1751022641408,-956.72,0.00019452,2]
[368092531,1751022641417,-460.0,0.00019452,2]
[368092532,1751022641427,-500.0,0.00019452,2]
[368092533,1751022641436,-151.0,0.000195,2]
[368092534,1751022641445,-151.0,0.00019535,2]
[368092535,1751022641454,-151.0,0.00019535,2]
[368092536,1751022641464,-151.0,0.00019535,2]
[368092537,1751022641473,-151.0,0.00019535,2]
[368092538,1751022641483,-153.51658329,0.00019535,2]
[368092539,1751022641492,-151.0,0.00019535,2]
[368092540,1751022641501,-152.11660757,0.00019535,2]
[368092541,1751022641510,-151.0,0.00019535,2]
[368092542,1751022641520,-500.0,0.00019535,2]
[368092543,1751022641530,-151.98541342,0.00019535,2]
[368092544,1751022641539,-199.22810316,0.00019535,2]
[368092545,1751022641549,-198.0,0.00019535,2]
[368092546,1751022641558,-2905.29662377,0.00019544,2]
[368092547,1751022641567,-169.18993449,0.00019562,2]
[368092548,1751022641577,-152.35758435,0.00019562,2]
[368092549,1751022641586,-500.0,0.00019562,2]
[368092550,1751022641601,-500.0,0.0001959,2]
[368092551,1751022641610,-500.0,0.00019617,2]
[368092552,1751022641619,-13932.06237176,0.00019626,2]
[368092553,1751022641629,-3128.60389164,0.00019644,2]
[368092554,1751022641640,-500.0,0.00019645,2]
[368092555,1751022641649,-500.0,0.00019672,2]
[368092556,1751022641659,-392.288962,0.00019699,2]
[368092557,1751022641668,-477.72,0.00019726,2]
[368092558,1751022641679,-460.0,0.00019726,2]
[368092559,1751022641688,-460.0,0.00019726,2]
[368092560,1751022641698,-460.0,0.00019726,2]
[368092561,1751022641708,-460.0,0.00019726,2]
[368092562,1751022641718,-460.0,0.00019726,2]
[368092563,1751022641727,-460.0,0.00019726,2]
[368092564,1751022641737,-791.95,0.00019726,2]
[368092565,1751022641746,-460.0,0.00019726,2]
[368092566,1751022641755,-460.0,0.00019726,2]
[368092567,1751022641765,-460.0,0.00019726,2]
[368092568,1751022641774,-460.0,0.00019726,2]
[368092569,1751022641784,-321.41932496,0.00019726,2]
[368092570,1751022641794,-460.0,0.00019726,2]
[368092571,1751022641804,-460.0,0.00019726,2]
[368092572,1751022641814,-528.92,0.00019726,2]
[368092573,1751022641823,-713.1,0.00019726,2]
[368092574,1751022641834,-460.0,0.00019726,2]
[368092575,1751022641843,-460.0,0.00019726,2]
[368092576,1751022641852,-5760.83,0.00019726,2]
[368092577,1751022641862,-460.0,0.00019726,2]
[368092578,1751022641871,-460.0,0.00019726,2]
[368092579,1751022641880,-460.0,0.00019726,2]
[368092580,1751022641890,-460.0,0.00019726,2]
[368092581,1751022641899,-460.0,0.00019726,2]
[368092582,1751022641908,-3724.58,0.00019726,2]
[368092583,1751022641918,-2481.82,0.00019726,2]
[368092584,1751022641927,-460.0,0.00019726,2]
[368092585,1751022641937,-460.0,0.00019726,2]
[368092586,1751022641946,-460.0,0.00019726,2]
[368092587,1751022641955,-460.0,0.00019726,2]
[368092588,1751022641965,-1680.38,0.00019726,2]
[368092589,1751022641974,-2154.79,0.00019726,2]
[368092590,1751022641983,-1185.4,0.00019726,2]
[368092591,1751022641992,-460.0,0.00019726,2]
[368092592,1751022642002,-1237.52,0.00019726,2]
[368092593,1751022642011,-460.0,0.00019726,2]
[368092594,1751022642021,-651.83,0.00019726,2]
[368092595,1751022642030,-460.0,0.00019726,2]
[368092596,1751022642040,-521.6,0.00019726,2]
[368092597,1751022642049,-1035.1,0.00019726,2]
[368092598,1751022642059,-460.0,0.00019726,2]
[368092599,1751022642068,-460.0,0.00019726,2]
[368092600,1751022642077,-460.0,0.00019726,2]
[368092601,1751022642087,-533.18,0.00019726,2]
[368092602,1751022642096,-460.0,0.00019726,2]
[368092603,1751022642105,-460.0,0.00019726,2]
[368092604,1751022642115,-786.33,0.00019726,2]
[368092605,1751022642124,-2300.32,0.00019726,2]
[368092606,1751022642134,-726.19,0.00019726,2]
[368092607,1751022642143,-609.19,0.00019726,2]
[368092608,1751022642153,-5506.58,0.00019726,2]
[368092609,1751022642162,-1858.38,0.00019726,2]
[368092610,1751022642171,-460.0,0.00019726,2]
[368092611,1751022642180,-566.92,0.00019726,2]
[368092612,1751022642189,-460.0,0.00019726,2]
[368092613,1751022642198,-460.0,0.00019726,2]
[368092614,1751022642208,-4272.26,0.00019726,2]
[368092615,1751022642217,-490.48,0.00019726,2]
[368092616,1751022642226,-322.35851931,0.00019726,2]
[368092617,1751022642236,-460.0,0.00019726,2]
[368092618,1751022642245,-460.0,0.00019726,2]
[368092619,1751022642254,-1506.98,0.00019726,2]
[368092620,1751022642263,-978.95,0.00019726,2]
[368092621,1751022642273,-460.0,0.00019726,2]
[368092622,1751022642282,-460.0,0.00019726,2]
[368092623,1751022642291,-753.3,0.00019726,2]
[368092624,1751022642301,-3243.13,0.00019726,2]
[368092625,1751022642310,-616.05,0.00019726,2]
[368092626,1751022642319,-3045.23,0.00019726,2]
[368092627,1751022642329,-3763.12,0.00019726,2]
[368092628,1751022642338,-460.0,0.00019726,2]
[368092629,1751022642347,-466.25,0.00019726,2]
[368092630,1751022642357,-691.92,0.00019726,2]
[368092631,1751022642366,-460.0,0.00019726,2]
[368092632,1751022642376,-472.04,0.00019726,2]
[368092633,1751022642385,-460.0,0.00019726,2]
[368092634,1751022642394,-460.0,0.00019726,2]
[368092635,1751022642403,-460.0,0.00019726,2]
[368092636,1751022642412,-460.0,0.00019726,2]
[368092637,1751022642421,-460.0,0.00019726,2]
[368092638,1751022642431,-668.29,0.00019726,2]
[368092639,1751022642440,-460.0,0.00019726,2]
[368092640,1751022642449,-651.62,0.00019726,2]
[368092641,1751022642459,-460.0,0.00019726,2]
[368092642,1751022642468,-956.72,0.00019726,2]
[368092643,1751022642478,-460.0,0.00019726,2]
[368092644,1751022642487,-1474.65,0.00019726,2]
[368092645,1751022642496,-524.44528285,0.00019726,2]
[368092646,1751022642505,-500.0,0.00019747,2]
[368092647,1751022642514,-500.0,0.00019747,2]
[368092648,1751022642523,-500.0,0.0001975,2]
[368092649,1751022642533,-500.0,0.0001975,2]
[368092650,1751022642542,-500.0,0.0001975,2]
[368092651,1751022642551,-500.0,0.00019765,2]
[368092652,1751022642561,-500.59761066,0.0001978,2]
[368092653,1751022642571,-500.0,0.0001978,2]
[368092654,1751022642580,-502.18333495,0.0001978,2]
[368092655,1751022642590,-500.0,0.0001978,2]
[368092656,1751022642602,-227.0,0.00019781,2]
[368092657,1751022642611,-501.79326718,0.00019781,2]
[368092658,1751022642620,-503.72408779,0.00019781,2]
[368092659,1751022642629,-500.85840275,0.00019784,2]
[368092660,1751022642639,-500.0,0.00019794,2]
[368092661,1751022642647,-500.0,0.00019794,2]
[368092662,1751022642657,-500.0,0.00019795,2]
[368092663,1751022642666,-160.46873652,0.00019795,2]
[368092664,1751022642675,-500.0,0.00019795,2]
[368092665,1751022642685,-500.0,0.00019795,2]
[368092666,1751022642694,-500.83643733,0.00019795,2]
[368092667,1751022642703,-500.0,0.00019795,2]
[368092668,1751022642715,-500.0,0.00019795,2]
[368092669,1751022642724,-500.0,0.00019795,2]
[368092670,1751022642735,-500.0,0.00019795,2]
[368092671,1751022642744,-500.0,0.00019795,2]
[368092672,1751022642753,-500.0,0.00019795,2]
[368092673,1751022642762,-500.0,0.00019795,2]
[368092674,1751022642772,-500.0,0.00019813,2]
[368092675,1751022642782,-799.99999802,0.0001988,2]
[368092676,1751022642790,-847.04181546,0.00019947,2]
[368092677,1751022642800,-160.0,0.00019947,2]
[368092678,1751022642809,-160.0,0.00019947,2]
[368092679,1751022642818,-160.0,0.00019947,2]
[368092680,1751022642828,-836.98798914,0.00019947,2]
[368092681,1751022642837,-12562.41216491,0.00019947,2]
[368092682,1751022642847,-230.26210603,0.00019947,2]
[368092683,1751022642856,-160.0,0.00019947,2]
[368092684,1751022642865,-213.75309343,0.00019947,2]
[368092685,1751022642875,-214.91804724,0.00019958,2]
[368092686,1751022642884,-2905.29662375,0.00019975,2]